[Event "Titled Tuesday Blitz November 22 Early 2022"]
[White "Vakhlamov, Igor L."]
[Black "Barp, Alberto"]
[WhiteFideId "24126748"]
[BlackFideId "872555"]
[WhiteElo "2401"]
[BlackElo "2313"]
[Result "1-0"]
[Round "04"]
[TimeControl "180+1"]
[Date "2022.11.23"]
[WhiteClock "0:00:05"]
[BlackClock "0:00:19"]

1. e4 {[%clk 0:03:00]}  e5 {[%clk 0:02:58]} 2. Nf3 {[%clk 0:02:58]}  Nc6 {[%clk 0:02:56]} 3. Nc3 {[%clk 0:02:58]}  Nf6 {[%clk 0:02:56]} 4. Bb5 {[%clk 0:02:59]}  Bd6 {[%clk 0:02:50]} 5. a3 {[%clk 0:02:58]}  h6 {[%clk 0:02:43]} 6. d3 {[%clk 0:02:55]}  a6 {[%clk 0:02:44]} 7. Bc4 {[%clk 0:02:55]}  Bc5 {[%clk 0:02:43]} 8. Be3 {[%clk 0:02:36]}  d6 {[%clk 0:02:43]} 9. Bxc5 {[%clk 0:02:35]}  dxc5 {[%clk 0:02:44]} 10. h3 {[%clk 0:02:34]}  Qd6 {[%clk 0:02:43]} 11. O-O {[%clk 0:02:33]}  Be6 {[%clk 0:02:43]} 12. Bxe6 {[%clk 0:02:29]}  fxe6 {[%clk 0:02:41]} 13. Nd2 {[%clk 0:02:15]}  g5 {[%clk 0:02:37]} 14. Nc4 {[%clk 0:02:14]}  Qe7 {[%clk 0:02:37]} 15. Qd2 {[%clk 0:02:07]}  O-O-O {[%clk 0:02:32]} 16. b4 {[%clk 0:02:05]}  cxb4 {[%clk 0:02:28]} 17. axb4 {[%clk 0:02:04]}  Qxb4 {[%clk 0:02:28]} 18. Rfb1 {[%clk 0:02:02]}  Qxc4 {[%clk 0:02:28]} 19. Qe1 {[%clk 0:01:41]}  Qd4 {[%clk 0:02:23]} 20. Ra4 {[%clk 0:01:41]}  Qc5 {[%clk 0:02:21]} 21. Rc4 {[%clk 0:01:40]}  Qd6 {[%clk 0:02:19]} 22. Qc1 {[%clk 0:00:49]}  b5 {[%clk 0:02:10]} 23. Rxb5 {[%clk 0:00:45]}  axb5 {[%clk 0:02:06]} 24. Nxb5 {[%clk 0:00:46]}  Qe7 {[%clk 0:01:19]} 25. Rxc6 {[%clk 0:00:45]}  Ne8 {[%clk 0:01:19]} 26. Qa1 {[%clk 0:00:42]}  Kd7 {[%clk 0:01:17]} 27. Qc3 {[%clk 0:00:19]}  Rc8 {[%clk 0:01:12]} 28. Qc4 {[%clk 0:00:15]}  Rh7 {[%clk 0:01:04]} 29. d4 {[%clk 0:00:14]}  exd4 {[%clk 0:01:01]} 30. Nxd4 {[%clk 0:00:15]}  Nd6 {[%clk 0:00:59]} 31. Qa4 {[%clk 0:00:15]}  Kd8 {[%clk 0:00:57]} 32. e5 {[%clk 0:00:15]}  Qd7 {[%clk 0:00:47]} 33. exd6 {[%clk 0:00:15]}  cxd6 {[%clk 0:00:45]} 34. Qa5+ {[%clk 0:00:07]}  Ke8 {[%clk 0:00:43]} 35. Ra6 {[%clk 0:00:07]}  e5 {[%clk 0:00:39]} 36. Qd5 {[%clk 0:00:04]}  Rf7 {[%clk 0:00:36]} 37. Rxd6 {[%clk 0:00:03]}  Qc7 {[%clk 0:00:19]} 38. Qe6+ {[%clk 0:00:03]}  Kf8 {[%clk 0:00:19]} 39. Qxh6+ {[%clk 0:00:04]}  Kg8 {[%clk 0:00:19]} 40. Rg6+ {[%clk 0:00:04]}  Rg7 {[%clk 0:00:19]} 41. Ne6 {[%clk 0:00:05]} 1-0


[Site "https://www.chess.com"]

[Event "Titled Tuesday Blitz November 22 Early 2022"]
[White "Vargas, Mauricio"]
[Black "Ravot, Sylvain"]
[WhiteFideId "4404572"]
[BlackFideId "627763"]
[WhiteElo "2025"]
[BlackElo "2195"]
[Result "0-1"]
[Round "04"]
[TimeControl "180+1"]
[Date "2022.11.23"]
[WhiteClock "0:00:01"]
[BlackClock "0:00:04"]

1. e4 {[%clk 0:03:00]}  c5 {[%clk 0:02:53]} 2. Nf3 {[%clk 0:02:59]}  Nc6 {[%clk 0:02:53]} 3. d4 {[%clk 0:02:59]}  cxd4 {[%clk 0:02:52]} 4. Nxd4 {[%clk 0:03:00]}  g6 {[%clk 0:02:52]} 5. Bc4 {[%clk 0:02:54]}  Bg7 {[%clk 0:02:49]} 6. c3 {[%clk 0:02:46]}  d6 {[%clk 0:02:26]} 7. O-O {[%clk 0:02:45]}  Nf6 {[%clk 0:02:25]} 8. f3 {[%clk 0:02:44]}  O-O {[%clk 0:02:08]} 9. Be3 {[%clk 0:02:44]}  Bd7 {[%clk 0:02:06]} 10. Nd2 {[%clk 0:02:43]}  a6 {[%clk 0:02:03]} 11. Qe1 {[%clk 0:02:42]}  Qa5 {[%clk 0:01:46]} 12. g4 {[%clk 0:02:27]}  Ne5 {[%clk 0:01:05]} 13. Bb3 {[%clk 0:02:11]}  Nd3 {[%clk 0:00:59]} 14. Qh4 {[%clk 0:01:35]}  Nxb2 {[%clk 0:00:59]} 15. Rac1 {[%clk 0:01:09]}  Rac8 {[%clk 0:00:48]} 16. c4 {[%clk 0:01:06]}  Nd3 {[%clk 0:00:42]} 17. Rb1 {[%clk 0:01:00]}  b5 {[%clk 0:00:27]} 18. cxb5 {[%clk 0:00:58]}  axb5 {[%clk 0:00:28]} 19. h3 {[%clk 0:00:57]}  Rfe8 {[%clk 0:00:20]} 20. f4 {[%clk 0:00:57]}  Nc5 {[%clk 0:00:14]} 21. N4f3 {[%clk 0:00:43]}  Nfxe4 {[%clk 0:00:12]} 22. Nxe4 {[%clk 0:00:36]}  Nxe4 {[%clk 0:00:13]} 23. f5 {[%clk 0:00:33]}  Nf6 {[%clk 0:00:11]} 24. fxg6 {[%clk 0:00:30]}  hxg6 {[%clk 0:00:11]} 25. Bh6 {[%clk 0:00:30]}  d5 {[%clk 0:00:08]} 26. Ng5 {[%clk 0:00:29]}  Qb6+ {[%clk 0:00:06]} 27. Kg2 {[%clk 0:00:19]}  Be6 {[%clk 0:00:05]} 28. Bxg7 {[%clk 0:00:17]}  Kxg7 {[%clk 0:00:05]} 29. Rxf6 {[%clk 0:00:13]}  exf6 {[%clk 0:00:05]} 30. Qh7+ {[%clk 0:00:12]}  Kf8 {[%clk 0:00:06]} 31. Qh8+ {[%clk 0:00:07]}  Ke7 {[%clk 0:00:06]} 32. Qh6 {[%clk 0:00:02]}  fxg5 {[%clk 0:00:06]} 33. Qxg5+ {[%clk 0:00:01]}  Kd7 {[%clk 0:00:04]} 34. Rd1 {[%clk 0:00:01]}  Qd6 {[%clk 0:00:04]} 0-1


[Site "https://www.chess.com"]

[Event "Titled Tuesday Blitz November 22 Early 2022"]
[White "Weetik, Vjacheslav"]
[Black "Golichenko, Ilija"]
[WhiteFideId "4153472"]
[BlackFideId "14117223"]
[WhiteElo "2469"]
[BlackElo "2350"]
[Result "1-0"]
[Round "04"]
[TimeControl "180+1"]
[Date "2022.11.23"]
[WhiteClock "0:00:05"]
[BlackClock "0:00:06"]

1. d4 {[%clk 0:02:56]}  Nf6 {[%clk 0:03:00]} 2. Nf3 {[%clk 0:02:56]}  e6 {[%clk 0:02:59]} 3. c4 {[%clk 0:02:55]}  b6 {[%clk 0:02:57]} 4. g3 {[%clk 0:02:55]}  Bb7 {[%clk 0:02:56]} 5. Bg2 {[%clk 0:02:55]}  Bb4+ {[%clk 0:02:57]} 6. Bd2 {[%clk 0:02:55]}  Qe7 {[%clk 0:02:57]} 7. Nc3 {[%clk 0:02:54]}  O-O {[%clk 0:02:56]} 8. Rc1 {[%clk 0:02:46]}  d6 {[%clk 0:02:47]} 9. O-O {[%clk 0:02:44]}  Nbd7 {[%clk 0:02:47]} 10. Bg5 {[%clk 0:02:23]}  Bxc3 {[%clk 0:02:45]} 11. Rxc3 {[%clk 0:02:23]}  h6 {[%clk 0:02:45]} 12. Bc1 {[%clk 0:02:22]}  Ne4 {[%clk 0:02:45]} 13. Rc2 {[%clk 0:02:11]}  f5 {[%clk 0:02:42]} 14. Ne1 {[%clk 0:02:02]}  a5 {[%clk 0:02:35]} 15. Nd3 {[%clk 0:02:00]}  Rae8 {[%clk 0:02:27]} 16. Nf4 {[%clk 0:01:50]}  Qf7 {[%clk 0:02:04]} 17. d5 {[%clk 0:01:45]}  Ndc5 {[%clk 0:01:52]} 18. dxe6 {[%clk 0:01:24]}  Nxe6 {[%clk 0:01:49]} 19. Nd5 {[%clk 0:01:24]}  N6c5 {[%clk 0:01:40]} 20. b3 {[%clk 0:01:14]}  Kh7 {[%clk 0:01:29]} 21. Bb2 {[%clk 0:01:10]}  Bxd5 {[%clk 0:01:22]} 22. cxd5 {[%clk 0:01:09]}  f4 {[%clk 0:01:23]} 23. Qd4 {[%clk 0:01:03]}  Qg6 {[%clk 0:01:13]} 24. Rc4 {[%clk 0:00:32]}  Ng5 {[%clk 0:01:02]} 25. Qd1 {[%clk 0:00:18]}  b5 {[%clk 0:00:46]} 26. Rc1 {[%clk 0:00:14]}  Qf5 {[%clk 0:00:29]} 27. Bd4 {[%clk 0:00:13]}  f3 {[%clk 0:00:24]} 28. exf3 {[%clk 0:00:14]}  Na6 {[%clk 0:00:16]} 29. f4 {[%clk 0:00:14]}  Ne4 {[%clk 0:00:16]} 30. Qd3 {[%clk 0:00:13]}  Nac5 {[%clk 0:00:15]} 31. Bxc5 {[%clk 0:00:11]}  Nxc5 {[%clk 0:00:15]} 32. Qxb5 {[%clk 0:00:10]}  Qg4 {[%clk 0:00:11]} 33. a3 {[%clk 0:00:09]}  Rb8 {[%clk 0:00:10]} 34. Qc6 {[%clk 0:00:07]}  Rf7 {[%clk 0:00:09]} 35. Rc3 {[%clk 0:00:05]}  Rxb3 {[%clk 0:00:08]} 36. Rxb3 {[%clk 0:00:04]}  Nxb3 {[%clk 0:00:09]} 37. Qc2+ {[%clk 0:00:05]}  Qg6 {[%clk 0:00:07]} 38. Qxb3 {[%clk 0:00:05]}  Qf5 {[%clk 0:00:07]} 39. Qc3 {[%clk 0:00:06]}  Re7 {[%clk 0:00:07]} 40. Qxa5 {[%clk 0:00:06]}  Qc2 {[%clk 0:00:07]} 41. Qb4 {[%clk 0:00:05]}  Re2 {[%clk 0:00:07]} 42. h4 {[%clk 0:00:06]}  h5 {[%clk 0:00:06]} 43. Bf3 {[%clk 0:00:06]}  Rd2 {[%clk 0:00:06]} 44. Be4+ {[%clk 0:00:05]} 1-0


[Site "https://www.chess.com"]

[Event "Titled Tuesday Blitz November 22 Early 2022"]
[White "Yeritsyan, Hayk"]
[Black "Zainullina, Nataliya"]
[WhiteFideId "13307320"]
[BlackFideId "4145488"]
[WhiteElo "2373"]
[BlackElo "2091"]
[Result "1/2-1/2"]
[Round "04"]
[TimeControl "180+1"]
[Date "2022.11.23"]
[WhiteClock "0:00:07"]
[BlackClock "0:00:09"]

1. d3 {[%clk 0:02:51]}  Nf6 {[%clk 0:02:56]} 2. d4 {[%clk 0:02:50]}  e6 {[%clk 0:02:53]} 3. Nf3 {[%clk 0:02:49]}  Be7 {[%clk 0:02:46]} 4. e3 {[%clk 0:02:50]}  O-O {[%clk 0:02:45]} 5. Bd3 {[%clk 0:02:50]}  b6 {[%clk 0:02:46]} 6. Nbd2 {[%clk 0:02:50]}  Bb7 {[%clk 0:02:46]} 7. O-O {[%clk 0:02:51]}  c5 {[%clk 0:02:46]} 8. c3 {[%clk 0:02:51]}  Nc6 {[%clk 0:02:42]} 9. Qe2 {[%clk 0:02:51]}  d5 {[%clk 0:02:42]} 10. dxc5 {[%clk 0:02:45]}  bxc5 {[%clk 0:02:41]} 11. e4 {[%clk 0:02:46]}  Qd7 {[%clk 0:02:26]} 12. e5 {[%clk 0:02:39]}  Nh5 {[%clk 0:02:24]} 13. g3 {[%clk 0:02:19]}  g6 {[%clk 0:01:47]} 14. Re1 {[%clk 0:02:13]}  d4 {[%clk 0:01:35]} 15. Ne4 {[%clk 0:02:03]}  Rad8 {[%clk 0:01:23]} 16. Bh6 {[%clk 0:01:25]}  Rfe8 {[%clk 0:01:02]} 17. Rad1 {[%clk 0:01:23]}  Qc7 {[%clk 0:00:44]} 18. c4 {[%clk 0:01:07]}  Nxe5 {[%clk 0:00:23]} 19. Nxe5 {[%clk 0:01:01]}  Qxe5 {[%clk 0:00:23]} 20. f4 {[%clk 0:00:45]}  Qc7 {[%clk 0:00:18]} 21. Bg5 {[%clk 0:00:43]}  Bxe4 {[%clk 0:00:17]} 22. Bxe4 {[%clk 0:00:40]}  Bxg5 {[%clk 0:00:17]} 23. fxg5 {[%clk 0:00:41]}  Ng7 {[%clk 0:00:15]} 24. Rf1 {[%clk 0:00:36]}  Rb8 {[%clk 0:00:15]} 25. g4 {[%clk 0:00:33]}  Red8 {[%clk 0:00:13]} 26. b3 {[%clk 0:00:33]}  Ne8 {[%clk 0:00:11]} 27. Qf3 {[%clk 0:00:32]}  Nd6 {[%clk 0:00:11]} 28. Bd3 {[%clk 0:00:30]}  Rf8 {[%clk 0:00:12]} 29. Rde1 {[%clk 0:00:29]}  a5 {[%clk 0:00:11]} 30. h4 {[%clk 0:00:26]}  a4 {[%clk 0:00:11]} 31. h5 {[%clk 0:00:25]}  axb3 {[%clk 0:00:11]} 32. h6 {[%clk 0:00:26]}  Ne8 {[%clk 0:00:10]} 33. axb3 {[%clk 0:00:22]}  Rxb3 {[%clk 0:00:09]} 34. Rb1 {[%clk 0:00:22]}  Rxb1 {[%clk 0:00:07]} 35. Rxb1 {[%clk 0:00:23]}  Qe7 {[%clk 0:00:07]} 36. Qf4 {[%clk 0:00:20]}  e5 {[%clk 0:00:07]} 37. Qd2 {[%clk 0:00:19]}  e4 {[%clk 0:00:07]} 38. Re1 {[%clk 0:00:19]}  e3 {[%clk 0:00:06]} 39. Qg2 {[%clk 0:00:19]}  Qxg5 {[%clk 0:00:06]} 40. Be4 {[%clk 0:00:19]}  Nf6 {[%clk 0:00:06]} 41. Bf3 {[%clk 0:00:17]}  Re8 {[%clk 0:00:04]} 42. Bc6 {[%clk 0:00:17]}  Rf8 {[%clk 0:00:04]} 43. Bf3 {[%clk 0:00:17]}  d3 {[%clk 0:00:05]} 44. Be4 {[%clk 0:00:14]}  Qxg4 {[%clk 0:00:04]} 45. Qxg4 {[%clk 0:00:12]}  Nxg4 {[%clk 0:00:04]} 46. Bxd3 {[%clk 0:00:12]}  Nf2 {[%clk 0:00:04]} 47. Bc2 {[%clk 0:00:10]}  Ng4 {[%clk 0:00:03]} 48. Bd1 {[%clk 0:00:10]}  e2 {[%clk 0:00:02]} 49. Bxe2 {[%clk 0:00:09]}  Ne3 {[%clk 0:00:02]} 50. Bf3 {[%clk 0:00:08]}  Nf5 {[%clk 0:00:02]} 51. Rd1 {[%clk 0:00:07]}  Nxh6 {[%clk 0:00:03]} 52. Rd5 {[%clk 0:00:08]}  Nf5 {[%clk 0:00:03]} 53. Rxc5 {[%clk 0:00:08]}  Ne3 {[%clk 0:00:04]} 54. Rc7 {[%clk 0:00:06]}  Rd8 {[%clk 0:00:04]} 55. Kf2 {[%clk 0:00:06]}  Nf5 {[%clk 0:00:05]} 56. c5 {[%clk 0:00:07]}  Nd4 {[%clk 0:00:05]} 57. c6 {[%clk 0:00:07]}  Nxf3 {[%clk 0:00:05]} 58. Kxf3 {[%clk 0:00:07]}  Kf8 {[%clk 0:00:06]} 59. Kf4 {[%clk 0:00:08]}  Ke8 {[%clk 0:00:06]} 60. Kg5 {[%clk 0:00:08]}  Rd6 {[%clk 0:00:05]} 61. Kh6 {[%clk 0:00:08]}  Rf6 {[%clk 0:00:05]} 62. Kxh7 {[%clk 0:00:08]}  Kd8 {[%clk 0:00:06]} 63. Rd7+ {[%clk 0:00:07]}  Kc8 {[%clk 0:00:06]} 64. Re7 {[%clk 0:00:06]}  Rxc6 {[%clk 0:00:06]} 65. Rxf7 {[%clk 0:00:06]}  Re6 {[%clk 0:00:07]} 66. Kh6 {[%clk 0:00:06]}  g5+ {[%clk 0:00:07]} 67. Kxg5 {[%clk 0:00:06]}  Rd6 {[%clk 0:00:07]} 68. Rf5 {[%clk 0:00:06]}  Rc6 {[%clk 0:00:07]} 69. Kf4 {[%clk 0:00:06]}  Kb7 {[%clk 0:00:08]} 70. Ke4 {[%clk 0:00:07]}  Kb6 {[%clk 0:00:08]} 71. Kd4 {[%clk 0:00:07]}  Rd6+ {[%clk 0:00:08]} 72. Kc4 {[%clk 0:00:07]}  Rc6+ {[%clk 0:00:09]} 73. Kb4 {[%clk 0:00:06]}  Kc7 {[%clk 0:00:09]} 74. Rc5 {[%clk 0:00:06]}  Rxc5 {[%clk 0:00:09]} 75. Kxc5 {[%clk 0:00:07]} 1/2-1/2


[Site "https://www.chess.com"]

[Event "Titled Tuesday Blitz November 22 Early 2022"]
[White "Zaichenko, Daria"]
[Black "Aarav Dengla"]
[WhiteFideId "4197453"]
[BlackFideId "45059756"]
[WhiteElo "2039"]
[BlackElo "2261"]
[Result "0-1"]
[Round "04"]
[TimeControl "180+1"]
[Date "2022.11.23"]
[WhiteClock "0:01:57"]
[BlackClock "0:02:13"]

1. e4 {[%clk 0:02:57]}  c5 {[%clk 0:02:59]} 2. Nf3 {[%clk 0:02:56]}  d6 {[%clk 0:03:00]} 3. d4 {[%clk 0:02:56]}  cxd4 {[%clk 0:03:01]} 4. Nxd4 {[%clk 0:02:56]}  Nf6 {[%clk 0:03:01]} 5. Nc3 {[%clk 0:02:55]}  a6 {[%clk 0:03:02]} 6. Be2 {[%clk 0:02:52]}  e5 {[%clk 0:03:01]} 7. Nb3 {[%clk 0:02:51]}  Be7 {[%clk 0:03:01]} 8. O-O {[%clk 0:02:50]}  O-O {[%clk 0:03:01]} 9. a4 {[%clk 0:02:50]}  Be6 {[%clk 0:02:59]} 10. Be3 {[%clk 0:02:48]}  Nbd7 {[%clk 0:02:59]} 11. a5 {[%clk 0:02:46]}  Rc8 {[%clk 0:02:59]} 12. Kh1 {[%clk 0:02:45]}  Rxc3 {[%clk 0:02:42]} 13. bxc3 {[%clk 0:02:44]}  Nxe4 {[%clk 0:02:43]} 14. Bd2 {[%clk 0:02:32]}  Qc7 {[%clk 0:02:37]} 15. Bd3 {[%clk 0:02:26]}  Nxc3 {[%clk 0:02:32]} 16. Qh5 {[%clk 0:02:25]}  g6 {[%clk 0:02:32]} 17. Qh6 {[%clk 0:02:25]}  Bf6 {[%clk 0:02:27]} 18. f4 {[%clk 0:02:24]}  Bg7 {[%clk 0:02:27]} 19. Qh4 {[%clk 0:02:23]}  e4 {[%clk 0:02:27]} 20. Be2 {[%clk 0:02:23]}  Nxe2 {[%clk 0:02:27]} 21. Rae1 {[%clk 0:02:20]}  Qxc2 {[%clk 0:02:26]} 22. Rxe2 {[%clk 0:02:16]}  Qxb3 {[%clk 0:02:25]} 23. Rxe4 {[%clk 0:02:14]}  Qd3 {[%clk 0:02:25]} 24. Qe1 {[%clk 0:02:11]}  Nc5 {[%clk 0:02:24]} 25. Re2 {[%clk 0:02:09]}  Bc4 {[%clk 0:02:23]} 26. Rff2 {[%clk 0:02:07]}  Bd4 {[%clk 0:02:22]} 27. Be3 {[%clk 0:02:02]}  Ne4 {[%clk 0:02:13]} 28. Bxd4 {[%clk 0:01:57]}  Nxf2+ {[%clk 0:02:12]} 29. Rxf2 {[%clk 0:01:57]}  Qxd4 {[%clk 0:02:13]} 30. Rd2 {[%clk 0:01:57]}  Qxf4 {[%clk 0:02:13]} 0-1


[Site "https://www.chess.com"]

[Event "Titled Tuesday Blitz November 22 Early 2022"]
[White "Zemlyanskii, Ivan"]
[Black "Duda, Jan-Krzysztof"]
[WhiteFideId "24249971"]
[BlackFideId "1170546"]
[WhiteElo "2107"]
[BlackElo "2779"]
[Result "0-1"]
[Round "04"]
[TimeControl "180+1"]
[Date "2022.11.22"]
[WhiteClock "0:00:02"]
[BlackClock "0:02:06"]

1. d4 {[%clk 0:03:00]}  g6 {[%clk 0:02:57]} 2. c4 {[%clk 0:03:00]}  Bg7 {[%clk 0:02:57]} 3. Nc3 {[%clk 0:03:01]}  d6 {[%clk 0:02:58]} 4. e4 {[%clk 0:02:57]}  c5 {[%clk 0:02:56]} 5. d5 {[%clk 0:02:56]}  Bxc3+ {[%clk 0:02:55]} 6. bxc3 {[%clk 0:02:57]}  e5 {[%clk 0:02:56]} 7. dxe6 {[%clk 0:02:36]}  Bxe6 {[%clk 0:02:55]} 8. Bf4 {[%clk 0:02:34]}  Nc6 {[%clk 0:02:55]} 9. Bxd6 {[%clk 0:02:22]}  Qa5 {[%clk 0:02:53]} 10. Qb3 {[%clk 0:01:22]}  O-O-O {[%clk 0:02:49]} 11. e5 {[%clk 0:01:16]}  Nf6 {[%clk 0:02:44]} 12. Rb1 {[%clk 0:01:12]}  b6 {[%clk 0:02:42]} 13. Qb5 {[%clk 0:01:09]}  Qxc3+ {[%clk 0:02:35]} 14. Kd1 {[%clk 0:01:03]}  Kb7 {[%clk 0:02:33]} 15. Rb3 {[%clk 0:00:56]}  Qxe5 {[%clk 0:02:32]} 16. Rd3 {[%clk 0:00:17]}  Rxd6 {[%clk 0:02:28]} 17. Nf3 {[%clk 0:00:18]}  Qa1+ {[%clk 0:02:25]} 18. Kc2 {[%clk 0:00:08]}  Nb4+ {[%clk 0:02:23]} 19. Kb3 {[%clk 0:00:08]}  Qb1+ {[%clk 0:02:22]} 20. Ka4 {[%clk 0:00:05]}  a6 {[%clk 0:02:06]} 21. Rxd6 {[%clk 0:00:02]}  Qxa2# {[%clk 0:02:06]} 0-1


[Site "https://www.chess.com"]

[Event "Titled Tuesday Blitz November 22 Early 2022"]
[White "Adithya A Chullikkad"]
[Black "Gedgafov, Chamal"]
[WhiteFideId "45078734"]
[BlackFideId "34130621"]
[WhiteElo "2106"]
[BlackElo "2067"]
[Result "0-1"]
[Round "05"]
[TimeControl "180+1"]
[Date "2022.11.23"]
[WhiteClock "0:01:47"]
[BlackClock "0:02:29"]

1. d4 {[%clk 0:03:00]}  d5 {[%clk 0:02:59]} 2. Bf4 {[%clk 0:03:01]}  c5 {[%clk 0:02:59]} 3. c3 {[%clk 0:03:00]}  Nc6 {[%clk 0:03:00]} 4. e3 {[%clk 0:03:01]}  cxd4 {[%clk 0:03:00]} 5. exd4 {[%clk 0:02:59]}  Nf6 {[%clk 0:03:00]} 6. Bd3 {[%clk 0:02:59]}  Bg4 {[%clk 0:03:00]} 7. Qb3 {[%clk 0:02:55]}  Na5 {[%clk 0:02:59]} 8. Qa4+ {[%clk 0:02:53]}  Bd7 {[%clk 0:02:59]} 9. Qc2 {[%clk 0:02:53]}  Rc8 {[%clk 0:02:58]} 10. Nf3 {[%clk 0:02:53]}  Nc6 {[%clk 0:02:58]} 11. h3 {[%clk 0:02:53]}  Nb4 {[%clk 0:02:58]} 12. Qd2 {[%clk 0:02:52]}  Nxd3+ {[%clk 0:02:58]} 13. Qxd3 {[%clk 0:02:52]}  Qb6 {[%clk 0:02:59]} 14. b3 {[%clk 0:02:34]}  Bb5 {[%clk 0:02:58]} 15. Qd2 {[%clk 0:02:30]}  Ne4 {[%clk 0:02:57]} 16. Qe3 {[%clk 0:02:28]}  e6 {[%clk 0:02:56]} 17. Ne5 {[%clk 0:02:21]}  Be7 {[%clk 0:02:48]} 18. f3 {[%clk 0:02:16]}  Nf6 {[%clk 0:02:44]} 19. Kf2 {[%clk 0:02:02]}  O-O {[%clk 0:02:42]} 20. g4 {[%clk 0:02:00]}  Nd7 {[%clk 0:02:41]} 21. h4 {[%clk 0:01:52]}  Nxe5 {[%clk 0:02:40]} 22. Bxe5 {[%clk 0:01:52]}  Bd6 {[%clk 0:02:36]} 23. f4 {[%clk 0:01:48]}  Bxe5 {[%clk 0:02:32]} 24. Qe4 {[%clk 0:01:47]}  dxe4 {[%clk 0:02:29]} 0-1


[Site "https://www.chess.com"]

[Event "Titled Tuesday Blitz November 22 Early 2022"]
[White "Ai, Evan"]
[Black "Kirillov, Dmitry"]
[WhiteFideId "2094770"]
[BlackFideId "34180572"]
[WhiteElo "1963"]
[BlackElo "2095"]
[Result "0-1"]
[Round "05"]
[TimeControl "180+1"]
[Date "2022.11.23"]
[WhiteClock "0:00:51"]
[BlackClock "0:00:05"]

1. e4 {[%clk 0:03:00]}  c6 {[%clk 0:03:00]} 2. d4 {[%clk 0:02:59]}  d5 {[%clk 0:03:01]} 3. Nc3 {[%clk 0:02:59]}  dxe4 {[%clk 0:03:01]} 4. Nxe4 {[%clk 0:03:00]}  Nf6 {[%clk 0:03:01]} 5. Nxf6+ {[%clk 0:03:00]}  exf6 {[%clk 0:03:02]} 6. Nf3 {[%clk 0:03:01]}  Bd6 {[%clk 0:03:02]} 7. c3 {[%clk 0:03:01]}  O-O {[%clk 0:03:03]} 8. Be2 {[%clk 0:03:01]}  Bg4 {[%clk 0:03:02]} 9. O-O {[%clk 0:03:02]}  Re8 {[%clk 0:03:02]} 10. h3 {[%clk 0:03:02]}  Bh5 {[%clk 0:03:03]} 11. Qc2 {[%clk 0:02:59]}  Nd7 {[%clk 0:02:59]} 12. Be3 {[%clk 0:02:55]}  Qc7 {[%clk 0:02:57]} 13. Rfe1 {[%clk 0:02:51]}  b5 {[%clk 0:02:28]} 14. Rad1 {[%clk 0:02:48]}  Nb6 {[%clk 0:02:25]} 15. b3 {[%clk 0:02:42]}  Nd5 {[%clk 0:02:24]} 16. Bd2 {[%clk 0:02:23]}  a5 {[%clk 0:01:43]} 17. c4 {[%clk 0:02:18]}  Bg6 {[%clk 0:01:43]} 18. Bd3 {[%clk 0:02:12]}  bxc4 {[%clk 0:01:21]} 19. bxc4 {[%clk 0:02:04]}  Nb4 {[%clk 0:01:20]} 20. Bxb4 {[%clk 0:02:03]}  Bxb4 {[%clk 0:01:21]} 21. Rxe8+ {[%clk 0:02:00]}  Rxe8 {[%clk 0:01:22]} 22. c5 {[%clk 0:01:56]}  Qf4 {[%clk 0:00:42]} 23. Bxg6 {[%clk 0:01:42]}  hxg6 {[%clk 0:00:43]} 24. Qa4 {[%clk 0:01:29]}  Re6 {[%clk 0:00:23]} 25. a3 {[%clk 0:01:26]}  Bxc5 {[%clk 0:00:22]} 26. Qxa5 {[%clk 0:01:21]}  Bd6 {[%clk 0:00:20]} 27. Qa8+ {[%clk 0:01:19]}  Kh7 {[%clk 0:00:19]} 28. Qxc6 {[%clk 0:01:19]}  g5 {[%clk 0:00:10]} 29. Qc2+ {[%clk 0:01:15]}  g6 {[%clk 0:00:09]} 30. a4 {[%clk 0:01:11]}  f5 {[%clk 0:00:08]} 31. d5 {[%clk 0:00:59]}  Re7 {[%clk 0:00:06]} 32. Qd2 {[%clk 0:00:53]}  Qxa4 {[%clk 0:00:05]} 33. Qxg5 {[%clk 0:00:51]}  Qxd1+ {[%clk 0:00:05]} 0-1


[Site "https://www.chess.com"]